Cogmind - Beta 14 @@@ ROGUE MODE // 2024.11.18 @ 15:20:41 Player: Fangrelle Result: Destroyed by D-53 Grenadier with Mini Grenade Launcher Performance ------------- Evolutions (0) 0 Regions Visited (2) 400 Robots Destroyed (26) 130 Value Destroyed (447) 447 Prototype IDs (0) 0 Alien Tech Used (0) 0 Bonus (0) 0 TOTAL SCORE: 977 Bonus ------- None Cogmind --------- Core Integrity 0/250 Matter 212/300 Energy 65/100 System Corruption 2% Temperature Cool (10) Movement Treading (240) Ox1 Location -10/Mines Parts ------- > --- POWER (1) -------- (None) > --- PROPULSION (2) --- Light Treads Light Treads > --- UTILITY (2) ------ High-capacity Storage Unit Light Armor Plating > --- WEAPON (2) ------- Medium Laser > --- INVENTORY (20) --- Compact Wheel Compact Wheel Large Storage Unit Sensor Array Light Armor Plating Hacking Suite Tractor Beam Assault Rifle Datajack Peak State ------------ > --- POWER ------------ Light Ion Engine > --- PROPULSION ------- Light Treads Light Treads > --- UTILITY ---------- Small Storage Unit Visual Processing Unit > --- WEAPON ----------- EM Pulse Gun Assault Rifle > --- INVENTORY -------- Compact Wheel Compact Wheel Medium Laser [Rating: 8] Favorites ----------- Power Light Ion Engine Engine Light Ion Engine Propulsion Light Treads Treads Light Treads Leg Aluminum Leg Wheel Compact Wheel Utility Light Armor Plating Device Sensor Array Storage High-capacity Storage Unit Processor Visual Processing Unit Protection Light Armor Plating Weapon Assault Rifle Energy Gun EM Pulse Gun Ballistic Gun Assault Rifle Launcher Grenade Launcher Special Melee Weapon Datajack Build | -11 -10 -10 ------- Run | Yrd Mat Min Slots Evolved . | . . . Power . | . . . Propulsion . | . . . Utility . | . . . Weapon . | . . . Parts Attached 20 | . 14 6 Power 1 | . 1 . Engine 1 | . 1 . Core . | . . . Reactor . | . . . Propulsion 6 | . 3 3 Treads 5 | . 3 2 Leg . | . . . Wheel 1 | . . 1 Hover . | . . . Flight . | . . . Utility 6 | . 5 1 Device 1 | . 1 . Storage 2 | . 2 . Processor 1 | . 1 . Hackware . | . . . Protection 2 | . 1 1 Artifact . | . . . Weapon 7 | . 5 2 Energy Gun 4 | . 3 1 Energy Cannon . | . . . Ballistic Gun . | . . . Ballistic Cannon . | . . . Launcher 2 | . 1 1 Special Weapon . | . . . Impact Weapon . | . . . Slashing Weapon . | . . . Piercing Weapon . | . . . Special Melee Weapon 1 | . 1 . Unidentified Prototypes . | . . . Parts Lost 5 | . . 5 Power 1 | . . 1 Propulsion 1 | . . 1 Utility 1 | . . 1 Weapon 2 | . . 2 Highest Loss Streak 5 | . . 5 To Critical Strikes . | . . . Average Slot Usage (%) 99 | . 99 98 Engine 13 | . 14 13 Treads 27 | . 28 27 Device 2 | . 2 . Storage 14 | . 14 14 Processor 1 | . 1 . Protection 9 | . 9 13 Energy Gun 12 | . 12 13 Ballistic Gun 13 | . 14 13 Peak Build Rating 8 | . 8 8 Average Rating 7 | . 7 7 On Entrance 6 | 6 6 8 Naked Turns . | . . . Heaviest Build 51 | 12 51 50 Greatest Support 40 | 20 40 40 Greatest Overweight (x) 3 | . 1 3 Average Overweight (x) . | . . 1 Largest Inventory Capacity 20 | . 20 20 Average Capacity 17 | . 16 20 Most Carried 13 | . 13 12 Average Carried 8 | . 8 11 Final Capacity 20 | 8 20 20 Final Carried 12 | 6 12 9 Class Distribution -------------------- 100% | Mutant Dominant Class ---------------- Mutant | -10/Materials Mutant | -10/Mines Resources | -11 -10 -10 ----------- Run | Yrd Mat Min Matter Collected 488 | 200 288 . Remotely . | . . . Salvage Created 877 | . 852 25 Parts 63 | . 63 . Haulers Intercepted 2 | . 2 . Recyclers Shooed . | . . . Parts Field Recycled . | . . . Retrieved Matter . | . . . Parts Self-Destructed . | . . . Prevented . | . . . Kills | -11 -10 -10 ------- Run | Yrd Mat Min Combat Hostiles Destroyed 22 | . 16 6 Guns 14 | . 12 2 AOE 8 | . 4 4 Classes Destroyed 9 | . 8 1 Worker 1 | . 1 . Builder 1 | . 1 . Hauler 2 | . 2 . Recycler 2 | . 2 . Operator 1 | . 1 . Watcher 3 | . 3 . Swarmer 9 | . 9 . Grunt 7 | . 7 . Assembled 6 | . . 6 Best Kill Streak 6 | . 5 6 Combat Bots Only 6 | . 4 6 Max Kills in Single Turn 5 | . 3 5 Gunslinging . | . . . Exploded 4 | . 3 4 Melee . | . . . Uniques/NPCs Destroyed . | . . . Combat | -11 -10 -10 -------- Run | Yrd Mat Min Hostile Shots Fired 91 | . 65 26 Missed 28 | . 23 5 Damage Taken 1061 | . 402 659 Core 256 | . 72 184 Absorbed by Shields . | . . . Regen/Repaired (Parts) 38 | . 38 . Core Remaining (%) 100 | 100 . . Volleys Fired 55 | . 50 5 Largest 2 | . 2 2 Hottest 80 | . 60 80 Shots Fired 109 | . 99 10 Gun 104 | . 98 6 Cannon . | . . . Launcher 5 | . 1 4 Special . | . . . Kinetic 51 | . 50 1 Thermal 5 | . . 5 Explosive 5 | . 1 4 Electromagnetic 48 | . 48 . Robot Hit Streak 9 | . 7 9 Robot Miss Streak 5 | . 5 1 Penetration Max . | . . . Secondary Targets 2 | . 2 . Max Gunslinging Chain 1 | . 1 . Shots Hit Robots 55 | . 47 8 Core Hits 44 | . 30 14 Critical Kills . | . . . Critical Parts Destroyed . | . . . Critical Strikes 1 | . 1 . Corrupt 1 | . 1 . Melee Attacks 1 | . 1 . Impact . | . . . Slashing . | . . . Piercing . | . . . Sneak Attacks 1 | . 1 . Combat Hostiles . | . . . Follow-up Attacks . | . . . Damage Inflicted 1284 | . 858 426 Guns 705 | . 643 62 Cannons . | . . . Explosions 570 | . 206 364 Melee . | . . . Ramming 9 | . 9 . Kinetic 312 | . 300 12 Thermal 115 | . 65 50 Explosive 505 | . 141 364 Electromagnetic 343 | . 343 . Impact . | . . . Slashing . | . . . Piercing . | . . . Highest Corruption 2 | . . 2 Average Corruption 2 | . . 2 Corruption Purged . | . . . Corruption Blocked . | . . . Overload Shots . | . . . Overflow Damage 9 | . . 9 Projectiles . | . . . Explosions 9 | . . 9 Melee . | . . . Knockbacks . | . . . Impact . | . . . Kinetic . | . . . Secondary . | . . . Self-Inflicted Damage 75 | . 18 57 Shots 3 | . 1 2 Rammed 1 | . 1 . Targets Rammed 1 | . 1 . Kicked . | . . . Crushed . | . . . Highest Temperature 90 | . 90 32 Average Temperature 27 | . 28 19 Received Heat Transfer 193 | . 93 100 Siege Activations . | . . . Robots Corrupted . | . . . Combat Hostiles . | . . . Parts Fried . | . . . Impact Corruptions . | . . . Robots Melted . | . . . Combat Hostiles . | . . . Parts Melted . | . . . Heat Transferred 198 | . 50 148 Parts Sabotaged . | . . . Parts Stolen . | . . . Parts Stripped . | . . . Power Chain Reactions 1 | . 1 . Alert | -11 -10 -10 ------- Run | Yrd Mat Min Peak Influence 315 | . 315 90 Initial 90 | . . 90 Average 148 | . 158 88 Maximum Alert Level 1 | . 1 . Low Security (%) 61 | . 55 100 Level 1 38 | . 44 . Level 2 . | . . . Level 3 . | . . . Level 4 . | . . . Level 5 . | . . . High Security . | . . . Max Security . | . . . Squads Dispatched 3 | . 3 . Investigation 2 | . 2 . Extermination . | . . . Reinforcement 1 | . 1 . Assault . | . . . Garrison . | . . . Intercept . | . . . Searches Triggered . | . . . Construction Impeded . | . . . Haulers Reinforced . | . . . Active Scanning Responses . | . . . Cargo Convoy Interrupts . | . . . Stealth | -11 -10 -10 --------- Run | Yrd Mat Min Distress Signals . | . . . Communications Jammed . | . . . Distress Signals . | . . . Times Spotted 37 | . 23 14 Peak Tracking Total 16 | . 3 16 Tactical Retreats 2 | . 1 1 Traps | -11 -10 -10 ------- Run | Yrd Mat Min Traps Triggered . | . . . Indirectly . | . . . Trap Hack Attempts 51 | . 51 . Triggered . | . . . Disarmed . | . . . Reprogrammed 3 | . 3 . Reused . | . . . Traps Extracted . | . . . Installed . | . . . Triggered . | . . . Machines | -11 -10 -10 ---------- Run | Yrd Mat Min Machines Disabled 2 | . 2 . Max in Single Turn 1 | . 1 . Machines Repaired . | . . . Machines Dismantled . | . . . Machines Sabotaged . | . . . Overloaded Fab Kills . | . . . Hacking | -11 -10 -10 --------- Run | Yrd Mat Min Machines Accessed 10 | . 10 . Terminals 7 | . 7 . Fabricators . | . . . Repair Stations 1 | . 1 . Recycling Units 2 | . 2 . Scanalyzers . | . . . Garrison Access . | . . . Total Hacks 34 | . 34 . Successful 17 | . 17 . Failed 17 | . 17 . Catastrophic . | . . . Database Lockouts . | . . . Manual 28 | . 28 . Terminals 26 | . 26 . Fabricators . | . . . Repair Stations 3 | . 3 . Recycling Units 5 | . 5 . Scanalyzers . | . . . Garrison Access . | . . . Terminal Hacks . | . . . Fabricator Hacks . | . . . Repair Station Hacks 2 | . 2 . Scan Component 1 | . 1 . Repair 1 | . 1 . Recycling Unit Hacks 2 | . 2 . Retrieve Components 2 | . 2 . Scanalyzer . | . . . Garrison Access Hacks . | . . . Unauthorized Hacks 13 | . 13 . Terminals 11 | . 11 . Assimilate 5 | . 5 . Botnet 5 | . 5 . Operators 1 | . 1 . Fabricators . | . . . Repair Stations . | . . . Recycling Units 2 | . 2 . Tunnel 2 | . 2 . Scanalyzers . | . . . Garrison Access . | . . . Data Cores Recovered . | . . . Used . | . . . Hacking Detections 7 | . 7 . Full Trace Events . | . . . Feedback Events . | . . . Feedback Blocked . | . . . Robot Schematics Acquired . | . . . Robots Built . | . . . Authchips . | . . . Time . | . . . Total Robot Build Rating . | . . . Part Schematics Acquired . | . . . Parts Built . | . . . Authchips . | . . . Time . | . . . Total Part Build Rating . | . . . Parts Repaired 1 | . 1 . Time 26 | . 26 . Parts Recycled . | . . . Recycled Matter . | . . . Retrieved Matter . | . . . Retrieved Components 17 | . 17 . Parts Scanalyzed . | . . . Part Schematics Acquired . | . . . Parts Damaged . | . . . Bothacking | -11 -10 -10 ------------ Run | Yrd Mat Min Used RIF Installer . | . . . Robots Hacked . | . . . Non-combat . | . . . Combat . | . . . Robot Hacks Applied . | . . . Relay Couplers Released . | . . . Fabnet Peak Effective % . | . . . Robots Rewired . | . . . Allies Hacked . | . . . Hacks Repelled . | . . . Allies | -11 -10 -10 -------- Run | Yrd Mat Min Total Allies . | . . . Largest Group . | . . . Highest-Rated Group . | . . . Highest-Rated Ally . | . . . Total Orders . | . . . Ally Attacks . | . . . Total Damage . | . . . Kills . | . . . Allies Corrupted . | . . . Allies Melted . | . . . Intel | -11 -10 -10 ------- Run | Yrd Mat Min Robot Analysis Total . | . . . Derelict Logs Recovered 3 | . . 3 Drone Launches . | . . . Drone Recoveries . | . . . Exploration | -11 -10 -10 ------------- Run | Yrd Mat Min Turns Passed 2195 | . 1874 321 Spaces Moved 740 | 1 611 128 Core . | . . . Treads 731 | . 611 120 Legs 1 | 1 . . Wheels 8 | . . 8 Hover . | . . . Flight . | . . . Fastest Speed 120 | 120 160 130 Average Speed 205 | 120 200 233 Slowest Speed 240 | 120 240 240 Overloaded Moves . | . . . Propulsion Burnouts . | . . . Robots Hopped . | . . . Cave-ins Triggered . | . . . Exploration Rate (%) 42 | 2 96 28 Regions Visited 2 Branch Regions 1 Pre-discovered Areas 4 | . 2 2 Known Exits Taken . | . . . Unknown Exits Taken 2 | 1 1 . Scrap Searched . | . . . Spaces Dug . | . . . Terrain Destroyed 39 | . 10 29 Melee . | . . . Projectile . | . . . AOE 39 | . 10 29 Terrain Rammed . | . . . Walls Destroyed . | . . . Machines Disabled . | . . . Actions | -11 -10 -10 --------- Run | Yrd Mat Min Total 1298 | . 1159 139 Wait 418 | . 418 . Move 738 | . 610 128 Hop . | . . . Pick Up 8 | . 8 . Fast Attach 2 | . 2 . Attach 6 | . 3 3 Detach . | . . . Swap 12 | . 9 3 Drop 6 | . 6 . Fire 55 | . 50 5 Melee 1 | . 1 . Ram . | . . . Kick . | . . . Crush 1 | . 1 . Escape Stasis . | . . . Rewire . | . . . Trap 51 | . 51 . Miscellaneous . | . . . Route ------- -11/Scrapyard -10/Materials (discovered 5 exits: [*Mat x3] / [*Min x2]) -10/Mines (discovered 1 exit: Sub) History --------- Turn | Location | Event 1 | -11/Scrapyard | Discovered new exit (range 0) 1 | -11/Scrapyard | Entered Materials 302 | -10/Materials | Build established: Mutant 722 | -10/Materials | Discovered new exit (range 16) 1103 | -10/Materials | Discovered new exit (range 10) 1181 | -10/Materials | Discovered new exit (range 7) 1454 | -10/Materials | Repaired EM Pulse Gun 1470 | -10/Materials | Discovered new exit (range 16) 1796 | -10/Materials | Discovered new exit (range 16) 1875 | -10/Materials | Entered Mines 2067 | -10/Mines | Identified exit to Subcaves 2099 | -10/Mines | Learned location of Zion (-6) 2152 | -10/Mines | Assembled infested the area 2191 | -10/Mines | Core integrity fell below 50% 2195 | -10/Mines | Core integrity fell below 20% 2196 | -10/Mines | Destroyed by D-53 Grenadier with Mini Grenade Launcher Last Messages --------------- 02160_ R-06 Scavenger Lgt. Ion Engine severed. 02160_ R-06 Scavenger destroyed. 02166_ EM Pulse Gun destroyed. 02181_ Lgt. Ion Engine destroyed. 02181_ System corrupted by crushing effect (+2). 02183_ as-27093 destroyed. 02183_ Lgt. Armor Plating destroyed. 02186_ as-14785 destroyed. 02186_ Destroyed Asb. F-torch. 02186_ as-55929 destroyed. 02186_ as-51627 destroyed. 02186_ as-81256 destroyed. 02186_ as-92526 destroyed. 02188_ as-80504 destroyed. 02188_ Lgt. Treads destroyed. 02189_ The unstable cave ceiling collapses. 02192_ Grenade Launcher destroyed. 02193_ The unstable cave ceiling collapses. 02195_ U-05 Engineer lays Concrete. 02196_ U-05 Engineer builds a Wall. Map ----- +----------------------------------------------------+ | ?????????????????????????????????????????????????? | | ?????????????????????????????????????????????????? | | ?????????????????????????????????????????????????? | | ?????????????????????????????????????????????????? | | ?????????????????????????????????????????????????? | | ?????????????????????????????????????????????????? | | ??????????????#???????????????????????####???????? | | ?????????????? ##????????????????????# ?????? | | ?????????????? #????????????????#### ?????? | | ????????????? ##??????????????? #????? | | ???????????? #??????????????? #????? | | ????????????""" ##?????????????? #????? | | ????????????""" ##????????????? ##???? | | ?????????????"" #?####??????## ???? | | ????????????? ### ?????## % ????? | | ?????????????# ## ??#### * #??????? | | ?????????????# ### ### #??????? | | ?????????????# #? #???????? | | ?????????????# # ? ?# #???????????? | | ?????????????# k## # ## ##???????????? | | ?????????????# ud r d ## ##????????????? | | ?????????????# ## # ###?????????????? | | ?????????????# # # ##???????????????? | | ?????????????# ## # #????????????????? | | ??????????#### #???# #????????????????? | | ??????????# #???# @ #????????????????? | | ??????????# #???# ##????????????????? | | ??????????# ####???# #????????????????? | | ??????????# #??????## ##????????????????? | | ??????????# #???????## ##?????????????????? | | ??????????# #????????#########??????????????????? | | ??????????# #???????????????????????????????????? | | ##????????# #???????????????????????????????????? | | #??????## #???????????????????????????????????? | | #????## #???????????????????????????????????? | | ##??# #???????????????????????????????????? | | #??# ##########??????????????????????????? | | #### #??????????????????????????? | | ## #??????????????????????????? | | ###### #??????????????????????????? | | """ #????# #??????????????????????????? | | """ ##????# #####??????????????????????? | | """ #####?????# #??????????????????????? | | #####?????????# #?########?????????????? | | ##?????????????###### #?# #?????????????? | | ##???????????????????# #?# #?????????????? | | #????????????????????# ### """ #?????????????? | | ##?????????????# #### """ #?????????????? | | ###???????????????# """ #?????????????? | | ??????????????????# ####### #?????????????? | +----------------------------------------------------+ Best States ------------- Heat Dissipation 25 Energy Generation 10 Energy Capacity 125 Matter Stores 300 Matter Capacity 300 Sight Range 18 Robot Scan Range 14 Terrain Scan Density 10 Armor Coverage 150 Evasion (%) 40 Recoil Reduction 2 Item Schematics ----------------- None Robot Schematics ------------------ None Fabricated ------------ Nothing Alien Tech Used ----------------- None Achievements -------------- None Challenges ------------ None Game ------ Seed ActuatorActuatorDesublimator Manual? 0 Play Time 00:11:16 Cumulative 109.8 hours Start 2024.11.18 @ 15:10:49 End 2024.11.18 @ 15:20:41 Sessions 1 Manual Loads 0 Difficulty Rogue Special Mode None Game No. 200 Rogue 200 Adventurer 0 Explorer 0 Win Type - Total 0 Types 0/0/0/0/0/0/0/0/0 Lore% 42 Gallery% 40 Achievement% 35 Wizard Run 0 Options --------- Layout 0 ASCII 0 Keyboard 0 Movement Mouse Keybinds 0 Fullscreen 1 Font 24/Cog Map View 91x25 Zoom Use 95% Tactical HUD 1 Map Filters NONE Filters NONE Steam 1 RUN: 69a39b11-c36a-4228-a94b-8608f33bbfc1